Cogmind - Beta 15 @@@ ROGUE MODE // 2025.05.11 @ 23:15:21 Player: Ulinator001 Result: Destroyed by D-53 Grenadier with Mini Grenade Launcher Performance ------------- Evolutions (0) 0 Regions Visited (4) 800 Robots Destroyed (15) 75 Value Destroyed (148) 148 Prototype IDs (2) 40 Alien Tech Used (0) 0 Bonus (0) 0 TOTAL SCORE: 1063 Bonus ------- None Cogmind --------- Core Integrity 0/250 Matter 181/300 Energy 100/100 System Corruption 0% Temperature Cool (0) Movement Core (200) Ox3 Location -9/Mines Parts ------- > --- POWER (1) -------- (None) > --- PROPULSION (2) --- (None) > --- UTILITY (2) ------ Medium Storage Unit Signal Interpreter > --- WEAPON (2) ------- (None) > --- INVENTORY (10) --- Ion Engine Light Treads Light Treads High-capacity Storage Unit Sensor Array Improved Terrain Scanner Seismic Detector Mining Laser Peak State ------------ > --- POWER ------------ Light Ion Engine > --- PROPULSION ------- Aluminum Leg Aluminum Leg > --- UTILITY ---------- Medium Storage Unit Signal Interpreter > --- WEAPON ----------- Assault Rifle Rocket Launcher > --- INVENTORY -------- Ion Engine Light Treads Light Treads High-capacity Storage Unit Sensor Array Improved Terrain Scanner Seismic Detector Light Assault Rifle Mining Laser [Rating: 9] Favorites ----------- Power Light Ion Engine Engine Light Ion Engine Propulsion Aluminum Leg Treads Light Treads Leg Aluminum Leg Utility Signal Interpreter Device Seismic Detector Storage Small Storage Unit Processor Signal Interpreter Weapon Assault Rifle Ballistic Gun Assault Rifle Launcher Rocket Launcher Special Weapon Mining Laser Build | -11 -10 -10 -10 -9 ------- Run | Yrd Mat Min Exi Min Slots Evolved . | . . . . . Power . | . . . . . Propulsion . | . . . . . Utility . | . . . . . Weapon . | . . . . . Parts Attached 17 | 7 2 3 4 1 Power 2 | 1 . 1 . . Engine 2 | 1 . 1 . . Core . | . . . . . Reactor . | . . . . . Propulsion 4 | 2 . . 2 . Treads 2 | . . . 2 . Leg 2 | 2 . . . . Wheel . | . . . . . Hover . | . . . . . Flight . | . . . . . Utility 5 | 2 . 1 2 . Device 1 | 1 . . . . Storage 3 | 1 . . 2 . Processor 1 | . . 1 . . Hackware . | . . . . . Protection . | . . . . . Artifact . | . . . . . Weapon 6 | 2 2 1 . 1 Energy Gun . | . . . . . Energy Cannon . | . . . . . Ballistic Gun 4 | 2 1 1 . . Ballistic Cannon . | . . . . . Launcher 1 | . . . . 1 Special Weapon 1 | . 1 . . . Impact Weapon . | . . . . . Slashing Weapon . | . . . . . Piercing Weapon . | . . . . . Special Melee Weapon . | . . . . . Unidentified Prototypes . | . . . . . Parts Lost 6 | . . . . 6 Power 1 | . . . . 1 Propulsion 2 | . . . . 2 Utility . | . . . . . Weapon 3 | . . . . 3 Highest Loss Streak 6 | . . . . 6 To Critical Strikes . | . . . . . Average Backups 7 | 3 7 8 8 9 Power . | . 1 1 1 1 Propulsion 1 | 1 2 2 2 2 Utility 2 | . 2 3 3 4 Weapon 1 | . 1 2 2 2 Tool/Special . | . . . . . Unused Backups 4 | . . . . 4 Power 1 | . . . . 1 Propulsion . | . . . . . Utility 2 | . . . . 2 Weapon 1 | . . . . 1 Tool/Special . | . . . . . Average Slot Usage (%) 100 | . 100 100 100 100 Engine 14 | . 14 14 14 14 Treads 12 | . . . 23 . Leg 15 | . 28 28 4 28 Device 2 | . 14 2 . . Storage 14 | . 14 14 14 14 Processor 11 | . . 11 14 14 Ballistic Gun 26 | . 15 28 28 23 Peak Build Rating 9 | 7 8 8 8 9 Average Rating 7 | 5 7 8 8 7 On Entrance 6 | . 7 8 8 8 Naked Turns . | . . . . . Heaviest Build 46 | 15 15 14 46 19 Greatest Support 40 | 20 20 20 40 20 Greatest Overweight (x) 3 | . . . 1 3 Average Overweight (x) . | . . . . . Largest Inventory Capacity 20 | 8 8 8 20 10 Average Capacity 12 | 7 8 8 17 10 Most Carried 9 | 6 8 8 9 9 Average Carried 7 | 3 7 8 8 8 Final Capacity 10 | 8 8 8 10 10 Final Carried 9 | 6 8 8 9 8 Class Distribution -------------------- 100% | Mutant Dominant Class ---------------- Mutant | -10/Materials Mutant | -10/Mines Mutant | -10/Exiles Mutant | -9/Mines Resources | -11 -10 -10 -10 -9 ----------- Run | Yrd Mat Min Exi Min Matter Collected 466 | 275 . 191 . . Remotely . | . . . . . Salvage Created 207 | 66 . 126 . 15 Parts 33 | 11 . 19 . 3 Haulers Intercepted . | . . . . . Recyclers Shooed 1 | 1 . . . . Parts Field Recycled . | . . . . . Retrieved Matter . | . . . . . Parts Self-Destructed . | . . . . . Prevented . | . . . . . Kills | -11 -10 -10 -10 -9 ------- Run | Yrd Mat Min Exi Min Combat Hostiles Destroyed 11 | . . 9 . 2 Guns 9 | . . 9 . . AOE 2 | . . . . 2 Classes Destroyed 2 | 1 . 1 . . Tunneler 4 | 4 . . . . Swarmer 11 | . . 9 . 2 Best Kill Streak 4 | 4 . 3 . 2 Combat Bots Only 3 | . . 3 . 2 Max Kills in Single Turn 2 | 1 . 1 . 2 Gunslinging . | . . . . . Exploded 2 | . . . . 2 Melee . | . . . . . Uniques/NPCs Destroyed . | . . . . . Combat | -11 -10 -10 -10 -9 -------- Run | Yrd Mat Min Exi Min Hostile Shots Fired 77 | . . 41 . 36 Missed 17 | . . 9 . 8 Hits 60 | . . 32 . 28 Projectile 60 | . . 32 . 28 AOE 12 | . . . . 12 Damage Taken 845 | . . 262 . 583 Core 252 | . . 73 . 179 Absorbed by Shields . | . . . . . Core Remaining (%) 100 | 100 . . . . Volleys Fired 42 | 7 1 26 . 8 Largest 2 | 2 1 2 . 2 Hottest 100 | 40 100 40 . 53 Shots Fired 82 | 14 1 52 . 15 Gun 77 | 14 . 52 . 11 Cannon . | . . . . . Launcher 4 | . . . . 4 Special 1 | . 1 . . . Kinetic 77 | 14 . 52 . 11 Thermal 1 | . 1 . . . Explosive 4 | . . . . 4 Electromagnetic . | . . . . . Robot Hit Streak 10 | 10 . 8 . 2 Robot Miss Streak 4 | 1 . 3 . 4 Penetration Max . | . . . . . Secondary Targets 1 | . . 1 . . Max Gunslinging Chain 1 | . . 1 . . Shots Hit Robots 43 | 11 . 28 . 4 Core Hits 21 | 4 . 10 . 7 Critical Kills . | . . . . . Critical Parts Destroyed . | . . . . . Critical Strikes . | . . . . . Melee Attacks . | . . . . . Impact . | . . . . . Slashing . | . . . . . Piercing . | . . . . . Sneak Attacks . | . . . . . Combat Hostiles . | . . . . . Follow-up Attacks . | . . . . . Damage Inflicted 591 | 137 . 296 . 158 Guns 461 | 137 . 296 . 28 Cannons . | . . . . . Explosions 130 | . . . . 130 Melee . | . . . . . Ramming . | . . . . . Kinetic 461 | 137 . 296 . 28 Thermal . | . . . . . Explosive 130 | . . . . 130 Electromagnetic . | . . . . . Impact . | . . . . . Slashing . | . . . . . Piercing . | . . . . . Highest Corruption . | . . . . . Average Corruption . | . . . . . Corruption Purged . | . . . . . Corruption Blocked . | . . . . . Overload Shots . | . . . . . Overflow Damage . | . . . . . Projectiles . | . . . . . Explosions . | . . . . . Melee . | . . . . . Knockbacks . | . . . . . Impact . | . . . . . Kinetic . | . . . . . Secondary . | . . . . . Self-Inflicted Damage 7 | . . . . 7 Shots 1 | . . . . 1 Rammed . | . . . . . Targets Rammed . | . . . . . Kicked . | . . . . . Crushed . | . . . . . Highest Temperature 20 | . 20 . . . Average Temperature 10 | . 10 . . . Received Heat Transfer . | . . . . . Siege Activations . | . . . . . Martial Activations . | . . . . . Shielding Activations . | . . . . . Robots Disrupted . | . . . . . Combat Hostiles . | . . . . . Robots Corrupted . | . . . . . Combat Hostiles . | . . . . . Parts Fried . | . . . . . Impact Corruptions . | . . . . . Robots Melted . | . . . . . Combat Hostiles . | . . . . . Parts Melted . | . . . . . Heat Transferred . | . . . . . Parts Sabotaged . | . . . . . Parts Stolen . | . . . . . Parts Stripped . | . . . . . Power Chain Reactions . | . . . . . Alert | -11 -10 -10 -10 -9 ------- Run | Yrd Mat Min Exi Min Maximum Alert Level . | . . . . . Low Security (%) 100 | 100 100 100 . 100 Level 1 . | . . . . . Level 2 . | . . . . . Level 3 . | . . . . . Level 4 . | . . . . . Level 5 . | . . . . . High Security . | . . . . . Max Security . | . . . . . Peak Influence 79 | 10 15 74 . 79 Initial . | . . . . . Average 18 | 2 3 23 . 19 Influence Increases 346 | 20 27 210 . 89 Destroy 0b10 Robot/C 220 | . . 180 . 40 Destroy 0b10 Robot/NC 20 | 20 . . . . Destroy Leader 40 | . . 30 . 10 Successful Hack 12 | . 12 . . . Disable Machine 15 | . 15 . . . Destroy Structure 24 | . . . . 24 Lose Combat Pursuer 15 | . . . . 15 Influence Decreases 327 | 20 27 192 18 70 Entered New Map 18 | . . . 18 . Time Decay 249 | 20 27 192 . 10 Lost Part 60 | . . . . 60 Squads Dispatched 1 | . 1 . . . Investigation . | . . . . . Extermination . | . . . . . Reinforcement 1 | . 1 . . . Assault . | . . . . . Garrison . | . . . . . Intercept . | . . . . . Searches Triggered . | . . . . . Construction Impeded . | . . . . . Haulers Reinforced . | . . . . . Active Scanning Responses . | . . . . . Cargo Convoy Interrupts . | . . . . . Stealth | -11 -10 -10 -10 -9 --------- Run | Yrd Mat Min Exi Min Distress Signals . | . . . . . Communications Jammed . | . . . . . Distress Signals . | . . . . . Times Spotted 15 | . . 9 . 6 Peak Tracking Total 5 | . . 3 . 5 Tactical Retreats 1 | . . . . 1 Traps | -11 -10 -10 -10 -9 ------- Run | Yrd Mat Min Exi Min Traps Triggered . | . . . . . Indirectly . | . . . . . Trap Hack Attempts . | . . . . . Triggered . | . . . . . Disarmed . | . . . . . Reprogrammed . | . . . . . Reused . | . . . . . Traps Extracted . | . . . . . Installed . | . . . . . Triggered . | . . . . . Machines | -11 -10 -10 -10 -9 ---------- Run | Yrd Mat Min Exi Min Machines Disabled 1 | . 1 . . . Max in Single Turn 1 | . 1 . . . Machines Repaired . | . . . . . Machines Dismantled . | . . . . . Machines Sabotaged . | . . . . . Overloaded Fab Kills . | . . . . . Hacking | -11 -10 -10 -10 -9 --------- Run | Yrd Mat Min Exi Min Machines Accessed 2 | . 2 . . . Terminals 2 | . 2 . . . Fabricators . | . . . . . Repair Stations . | . . . . . Recycling Units . | . . . . . Scanalyzers . | . . . . . Garrison Access . | . . . . . Total Hacks 4 | . 4 . . . Successful 2 | . 2 . . . Failed 2 | . 2 . . . Catastrophic 1 | . 1 . . . Database Lockouts . | . . . . . Manual 2 | . 2 . . . Terminals 4 | . 4 . . . Fabricators . | . . . . . Repair Stations . | . . . . . Recycling Units . | . . . . . Scanalyzers . | . . . . . Garrison Access . | . . . . . Terminal Hacks 2 | . 2 . . . Prototype ID Bank 1 | . 1 . . . Branch Access Points 1 | . 1 . . . Fabricator Hacks . | . . . . . Repair Station Hacks . | . . . . . Recycling Unit Hacks . | . . . . . Scanalyzer . | . . . . . Garrison Access Hacks . | . . . . . Unauthorized Hacks . | . . . . . Terminals . | . . . . . Fabricators . | . . . . . Repair Stations . | . . . . . Recycling Units . | . . . . . Scanalyzers . | . . . . . Garrison Access . | . . . . . Data Cores Recovered . | . . . . . Used . | . . . . . Hacking Detections 1 | . 1 . . . Full Trace Events . | . . . . . Feedback Events . | . . . . . Feedback Blocked . | . . . . . Robot Schematics Acquired . | . . . . . Robots Built . | . . . . . Authchips . | . . . . . Time . | . . . . . Total Robot Build Rating . | . . . . . Part Schematics Acquired . | . . . . . Parts Built . | . . . . . Authchips . | . . . . . Time . | . . . . . Total Part Build Rating . | . . . . . Parts Repaired . | . . . . . Time . | . . . . . Parts Recycled . | . . . . . Recycled Matter . | . . . . . Retrieved Matter . | . . . . . Retrieved Components . | . . . . . Parts Scanalyzed . | . . . . . Part Schematics Acquired . | . . . . . Parts Damaged . | . . . . . Bothacking | -11 -10 -10 -10 -9 ------------ Run | Yrd Mat Min Exi Min Used RIF Installer . | . . . . . Robots Hacked . | . . . . . Non-combat . | . . . . . Combat . | . . . . . Robot Hacks Applied . | . . . . . Relay Couplers Released . | . . . . . Fabnet Peak Effective % . | . . . . . Robots Rewired . | . . . . . Allies Hacked . | . . . . . Hacks Repelled . | . . . . . Allies | -11 -10 -10 -10 -9 -------- Run | Yrd Mat Min Exi Min Total Allies . | . . . . . Largest Group . | . . . . . Highest-Rated Group . | . . . . . Highest-Rated Ally . | . . . . . Total Orders . | . . . . . Ally Attacks . | . . . . . Total Damage . | . . . . . Kills . | . . . . . Allies Corrupted . | . . . . . Allies Melted . | . . . . . Intel | -11 -10 -10 -10 -9 ------- Run | Yrd Mat Min Exi Min Active Infowar (turns) 301 | 43 124 134 . . Seismic 301 | 43 124 134 . . Robot Analysis Total . | . . . . . Derelict Logs Recovered . | . . . . . Drone Launches . | . . . . . Drone Recoveries . | . . . . . Exploration | -11 -10 -10 -10 -9 ------------- Run | Yrd Mat Min Exi Min Turns Passed 1898 | 109 124 664 949 52 Spaces Moved 1126 | 63 96 484 461 22 Core 6 | 5 . . . 1 Treads 346 | . . . 346 . Legs 774 | 58 96 484 115 21 Wheels . | . . . . . Hover . | . . . . . Flight . | . . . . . Fastest Speed 50 | 50 120 120 120 120 Average Speed 154 | 114 120 120 203 123 Slowest Speed 240 | 120 120 120 240 200 Overloaded Moves . | . . . . . Propulsion Burnouts . | . . . . . Robots Hopped . | . . . . . Potential Cave-ins . | . . . . . Cave-ins Triggered . | . . . . . Exploration Rate (%) 39 | 5 19 74 91 8 Regions Visited 4 Branch Regions 3 Pre-discovered Areas . | . . . . . Known Exits Taken 3 | . 1 1 1 . Unknown Exits Taken 1 | 1 . . . . Scrap Searched 2 | . . 2 . . Spaces Dug . | . . . . . Terrain Destroyed 37 | . . . . 37 Melee . | . . . . . Projectile . | . . . . . AOE 37 | . . . . 37 Terrain Rammed . | . . . . . Walls Destroyed . | . . . . . Machines Disabled . | . . . . . Actions | -11 -10 -10 -10 -9 --------- Run | Yrd Mat Min Exi Min Total 1205 | 82 102 521 468 32 Wait 5 | . . 5 . . Move 1122 | 62 95 483 460 22 Hop . | . . . . . Pick Up 11 | 6 3 1 1 . Fast Attach 7 | 7 . . . . Attach 2 | . 1 . . 1 Detach . | . . . . . Swap 11 | . 1 3 6 1 Drop 5 | . 1 3 1 . Fire 42 | 7 1 26 . 8 Melee . | . . . . . Ram . | . . . . . Kick . | . . . . . Crush . | . . . . . Escape Stasis . | . . . . . Rewire . | . . . . . Trap . | . . . . . Miscellaneous . | . . . . . Route ------- -11/Scrapyard -10/Materials (discovered 2 exits: *Min x2) -10/Mines (discovered 4 exits: *Mat x2 / *Exi / *Sub) -10/Exiles (discovered 2 exits: *Min x2) -9/Mines History --------- Turn | Location | Event 6 | -11/Scrapyard | Discovered new exit (range 14) 110 | -11/Scrapyard | Entered Materials 190 | -10/Materials | Identified exit to Mines 234 | -10/Materials | Entered Mines 308 | -10/Mines | Build established: Mutant 365 | -10/Mines | Discovered new exit (range 3) 369 | -10/Mines | Identified exit to Subcaves 387 | -10/Mines | Discovered new exit (range 10) 394 | -10/Mines | Received a Rocket Launcher from a helpful Derelict 402 | -10/Mines | Identified exit to Materials 417 | -10/Mines | Discovered exit to Materials (range 6) 564 | -10/Mines | Found a damaged Exp. Sensor Array with a note attached 892 | -10/Mines | Deemed a non-threat by the Exiles lab entrance 893 | -10/Mines | Discovered new exit (range 5) 897 | -10/Mines | Identified exit to Exiles 898 | -10/Mines | Entered Exiles 918 | -10/Exiles | Discovered new exit (range 15) 933 | -10/Exiles | Identified exit to Mines 958 | -10/Exiles | Met 8R-AWN 979 | -10/Exiles | Met EX-HEX 1120 | -10/Exiles | Visited The Gauntlet 1345 | -10/Exiles | Met EX-DEC 1443 | -10/Exiles | Met EX-BIN 1823 | -10/Exiles | Discovered exit to Mines (range 14) 1847 | -10/Exiles | Entered Mines 1848 | -9/Mines | Assembled infested the area 1892 | -9/Mines | Core integrity fell below 50% 1896 | -9/Mines | Core integrity fell below 20% 1899 | -9/Mines | Destroyed by D-53 Grenadier with Mini Grenade Launcher Last Messages --------------- Acquired Med. Storage Unit. EXIT=FOUND: MINES LOCATION=MINES GOAL=ESCAPE ALERT: Infestation in the mines, dispatching Demolisher response squad. C-30 ARC bursts open, deploying its payload. S-10 Pest unfolds itself. C-30 ARC bursts open, deploying its payload. D-53 Grenadier unfolds itself. S-10 Pest destroyed. Rocket Launcher destroyed. The unstable cave ceiling collapses. Assault Rifle destroyed. Aluminum Leg destroyed. Lgt. Ion Engine destroyed. The unstable cave ceiling collapses. Aluminum Leg destroyed. The unstable cave ceiling collapses. Lgt. Assault Rifle destroyed. Map ----- +----------------------------------------------------+ | | | | | | | | | | | | | | | | | | | | | | | | | | | | | ?????????????????????????????????????????????????? | | ?????????????????????????????????????????????????? | | ??????????????????###????????????????????????????? | | ???????????????#### ##??????????????????????????? | | ?????????? ## #?##??????????????????????? | | ??????????? # ####???????????????????? | | ?????????????# ##??????????????????? | | ?????????????????? #??????????????????? | | ???????????????????# ##?????????????????? | | ??????????????????## ##????????????????? | | ??????????????????# ##???????????????? | | ??????????????????# @ ##??????????????? | | ??????????????????## #??????????????? | | ???????????????????# #??????????????? | | ???????????????????## # ##??????????????? | | ????????????????????## #######???????????????? | | ????????????????????? ##?????????????????????? | | ????????????????????# dd ??????????????????????? | | ????????????????????# % ????????????????????? | | ???????????????????? #???????????????????? | | ??????????????????? r % ??????????????????? | | ??????????????????? ?????????????????? | | ?????????????????? ##????????????????? | | ????????????????? # ######?????????????????? | | ??????????????????## #???????????????????????? | | ????????????????????# ###????????????????????????? | | ?????????????????????????????????????????????????? | | ?????????????????????????????????????????????????? | | ?????????????????????????????????????????????????? | | ?????????????????????????????????????????????????? | | ?????????????????????????????????????????????????? | | ?????????????????????????????????????????????????? | | ?????????????????????????????????????????????????? | | ?????????????????????????????????????????????????? | | ?????????????????????????????????????????????????? | | ?????????????????????????????????????????????????? | +----------------------------------------------------+ Best States ------------- Heat Dissipation 25 Energy Generation 10 Energy Capacity 250 Matter Stores 300 Matter Capacity 300 Sight Range 16 Terrain Scan Density 10 Evasion (%) 55 Recoil Reduction 2 Item Schematics ----------------- None Robot Schematics ------------------ None Fabricated ------------ Nothing Repaired ---------- Nothing Alien Tech Used ----------------- None Achievements -------------- None Challenges ------------ None Game ------ Seed FrostStructuralSpiker Manual? 0 Play Time 00:18:44 Cumulative 17.4 hours Start 2025.05.11 @ 22:57:48 End 2025.05.11 @ 23:15:21 Sessions 1 Manual Loads 0 Difficulty Rogue Special Mode None Game No. 16 Rogue 16 Adventurer 0 Explorer 0 Win Type - Total 0 Types 0/0/0/0/0/0/0/0/0/0 Lore% 24 Gallery% 15 Achievement% 16 Wizard Run 0 Options --------- Layout 1 ASCII 0 Keyboard 0 Movement Mouse Keybinds 1 Fullscreen 1 Font 24/Smallcaps Map View 50x35 Zoom Use 0% Tactical HUD 0 Map Filters NONE Filters NONE Steam 1 RUN: cb8a01e8-1a7e-4074-b46b-b81652b4b2a9